[Event "*** Titled Tuesday 3|2 Blitz"]
[Site "Chess.com"]
[Date "2016.05.03"]
[Round "5"]
[White "Krasimir_Rusev"]
[Black "chito89"]
[Result "0-1"]
[WhiteElo "2496"]
[BlackElo "2656"]
[TimeControl "180+2"]
[EndTime "12:00:39 PDT"]
[Termination "chito89 won by checkmate"]

1. d4 {[%clk 0:03:01.9]} 1... Nf6 {[%clk 0:03:00.5]} 2. Bg5 {[%clk 0:03:02.4]}
2... d5 {[%clk 0:02:59.7]} 3. Bxf6 {[%clk 0:02:57.9]} 3... gxf6 {[%clk
0:03:00.2]} 4. c4 {[%clk 0:02:57.7]} 4... dxc4 {[%clk 0:03:00.4]} 5. e3 {[%clk
0:02:58.2]} 5... c5 {[%clk 0:02:55.6]} 6. Bxc4 {[%clk 0:02:57.8]} 6... cxd4
{[%clk 0:02:52]} 7. Nf3 {[%clk 0:02:52.3]} 7... Nc6 {[%clk 0:02:40.7]} 8. exd4
{[%clk 0:02:51.2]} 8... Bg7 {[%clk 0:02:38.2]} 9. h3 {[%clk 0:02:47.2]} 9... O-O
{[%clk 0:02:33.4]} 10. Nc3 {[%clk 0:02:46.6]} 10... f5 {[%clk 0:02:31.3]} 11.
O-O {[%clk 0:02:14.3]} 11... Nxd4 {[%clk 0:02:27.5]} 12. Nxd4 {[%clk 0:02:14.6]}
12... Qxd4 {[%clk 0:02:28]} 13. Qb3 {[%clk 0:02:12.2]} 13... e6 {[%clk
0:02:26.8]} 14. Rad1 {[%clk 0:02:12.9]} 14... Qc5 {[%clk 0:02:19.6]} 15. Rd3
{[%clk 0:02:09]} 15... b6 {[%clk 0:02:06.4]} 16. Rfd1 {[%clk 0:01:49.3]} 16...
Bb7 {[%clk 0:01:52.4]} 17. Rd7 {[%clk 0:01:49.9]} 17... Bc6 {[%clk 0:01:46.6]}
18. Bxe6 {[%clk 0:00:50.4]} 18... fxe6 {[%clk 0:01:31]} 19. Qxe6+ {[%clk
0:00:50.3]} 19... Kh8 {[%clk 0:01:32.5]} 20. Rc7 {[%clk 0:00:46.7]} 20... Rf6
{[%clk 0:01:33.7]} 21. Qe2 {[%clk 0:00:19.4]} 21... Rg6 {[%clk 0:01:30.5]} 22.
g4 {[%clk 0:00:13.9]} 22... fxg4 {[%clk 0:01:26.5]} 23. hxg4 {[%clk 0:00:15.1]}
23... Bxc3 {[%clk 0:01:00.6]} 24. bxc3 {[%clk 0:00:14.7]} 24... Rag8 {[%clk
0:01:02.1]} 25. Rd4 {[%clk 0:00:13.8]} 25... Qxd4 {[%clk 0:00:57]} 26. cxd4
{[%clk 0:00:12.9]} 26... Rxg4+ {[%clk 0:00:57.7]} 27. Kh2 {[%clk 0:00:11.5]}
27... Rh4# {[%clk 0:00:58.4]} 0-1

[Event "*** Titled Tuesday 3|2 Blitz"]
[Site "Chess.com"]
[Date "2016.05.03"]
[Round "5"]
[White "Danirod"]
[Black "Colombiano07"]
[Result "0-1"]
[WhiteElo "2411"]
[BlackElo "2264"]
[TimeControl "180+2"]
[EndTime "12:00:41 PDT"]
[Termination "Colombiano07 won by resignation"]

1. e4 {[%clk 0:03:01.9]} 1... c5 {[%clk 0:03:00.9]} 2. Nf3 {[%clk 0:03:02.5]}
2... Nc6 {[%clk 0:03:02.4]} 3. c3 {[%clk 0:03:03.7]} 3... d5 {[%clk 0:03:02.8]}
4. exd5 {[%clk 0:03:05.2]} 4... Qxd5 {[%clk 0:03:03.9]} 5. d4 {[%clk 0:03:06.5]}
5... e6 {[%clk 0:03:05.1]} 6. Na3 {[%clk 0:03:04.5]} 6... Qd8 {[%clk 0:03:02.8]}
7. Nc2 {[%clk 0:03:04.9]} 7... Nf6 {[%clk 0:03:02.8]} 8. Bd3 {[%clk 0:03:05.9]}
8... b6 {[%clk 0:02:59]} 9. O-O {[%clk 0:03:04.8]} 9... Bb7 {[%clk 0:02:59.8]}
10. Qe2 {[%clk 0:03:06]} 10... Be7 {[%clk 0:02:59.9]} 11. dxc5 {[%clk
0:02:57.1]} 11... Bxc5 {[%clk 0:03:00.2]} 12. Bg5 {[%clk 0:02:58.5]} 12... h6
{[%clk 0:02:58.2]} 13. Bh4 {[%clk 0:02:57.5]} 13... Be7 {[%clk 0:02:57.7]} 14.
Rad1 {[%clk 0:02:57.9]} 14... Qc8 {[%clk 0:02:56.1]} 15. Ncd4 {[%clk 0:02:54.9]}
15... Nxd4 {[%clk 0:02:56.3]} 16. Nxd4 {[%clk 0:02:55.7]} 16... O-O {[%clk
0:02:56.7]} 17. Rfe1 {[%clk 0:02:52.4]} 17... Re8 {[%clk 0:02:52.2]} 18. Bb5
{[%clk 0:02:48.9]} 18... Rd8 {[%clk 0:02:49.4]} 19. Nf5 {[%clk 0:02:31.3]} 19...
exf5 {[%clk 0:02:47.2]} 20. Qxe7 {[%clk 0:02:29.4]} 20... Rxd1 {[%clk
0:02:46.1]} 21. Rxd1 {[%clk 0:02:31.3]} 21... Nd5 {[%clk 0:01:45.2]} 22. Qd6
{[%clk 0:02:26.9]} 22... Qe6 {[%clk 0:01:41.1]} 23. Bg3 {[%clk 0:01:35.4]} 23...
f4 {[%clk 0:01:18.5]} 24. Bxf4 {[%clk 0:01:31]} 24... Qg4 {[%clk 0:01:18]} 25.
f3 {[%clk 0:01:22.3]} 25... Qxf4 {[%clk 0:01:14.4]} 26. Rxd5 {[%clk 0:01:23.8]}
26... Qe3+ {[%clk 0:01:14.6]} 27. Kf1 {[%clk 0:01:25]} 27... Bxd5 {[%clk
0:01:14.4]} 28. Qxd5 {[%clk 0:01:26.5]} 28... Rf8 {[%clk 0:01:13.3]} 29. Qd1
{[%clk 0:01:05.1]} 29... Qe5 {[%clk 0:01:13.3]} 30. Qe2 {[%clk 0:00:52.5]} 30...
Qxh2 {[%clk 0:01:09.7]} 31. b4 {[%clk 0:00:46.8]} 31... Qc7 {[%clk 0:01:07.2]}
32. c4 {[%clk 0:00:40.3]} 32... Rd8 {[%clk 0:01:06.5]} 33. a4 {[%clk 0:00:36.4]}
33... Qd6 {[%clk 0:01:06.6]} 34. Qb2 {[%clk 0:00:29.3]} 34... Qd1+ {[%clk
0:01:06.4]} 0-1

[Event "*** Titled Tuesday 3|2 Blitz"]
[Site "Chess.com"]
[Date "2016.05.03"]
[Round "5"]
[White "Izoria123"]
[Black "Zazuliak"]
[Result "1/2-1/2"]
[WhiteElo "2605"]
[BlackElo "2379"]
[TimeControl "180+2"]
[EndTime "12:00:55 PDT"]
[Termination "Game drawn by agreement"]

1. e4 {[%clk 0:03:01.9]} 1... c5 {[%clk 0:02:59.8]} 2. Nf3 {[%clk 0:03:01.7]}
2... g6 {[%clk 0:02:59.2]} 3. c3 {[%clk 0:03:01]} 3... Bg7 {[%clk 0:02:58.2]} 4.
d4 {[%clk 0:03:01.9]} 4... cxd4 {[%clk 0:02:59.4]} 5. cxd4 {[%clk 0:03:03.8]}
5... d5 {[%clk 0:03:00.6]} 6. e5 {[%clk 0:03:04.9]} 6... Bg4 {[%clk 0:03:00.8]}
7. Bb5+ {[%clk 0:02:58.6]} 7... Nc6 {[%clk 0:03:01.2]} 8. O-O {[%clk 0:02:58.5]}
8... Rc8 {[%clk 0:02:58.7]} 9. Qb3 {[%clk 0:02:37.2]} 9... Bxf3 {[%clk
0:02:57.7]} 10. Qxf3 {[%clk 0:02:36.1]} 10... e6 {[%clk 0:02:57.1]} 11. Bxc6+
{[%clk 0:02:36.3]} 11... Rxc6 {[%clk 0:02:57.3]} 12. Nc3 {[%clk 0:02:36.9]}
12... a6 {[%clk 0:02:41.3]} 13. Ne2 {[%clk 0:02:15.9]} 13... Ne7 {[%clk
0:02:40.1]} 14. Bg5 {[%clk 0:02:14.3]} 14... O-O {[%clk 0:02:40.3]} 15. Rac1
{[%clk 0:02:12.5]} 15... Qd7 {[%clk 0:02:26.9]} 16. Bxe7 {[%clk 0:02:11.5]}
16... Qxe7 {[%clk 0:02:19.1]} 17. Rxc6 {[%clk 0:02:10.1]} 17... bxc6 {[%clk
0:02:20]} 18. Qc3 {[%clk 0:02:10.4]} 18... Rc8 {[%clk 0:01:50.2]} 19. Rc1 {[%clk
0:02:09.2]} 19... f6 {[%clk 0:01:40.2]} 20. exf6 {[%clk 0:02:05.7]} 20... Bxf6
{[%clk 0:01:40.2]} 21. g3 {[%clk 0:01:56.7]} 21... e5 {[%clk 0:01:35.9]} 22.
dxe5 {[%clk 0:01:54.1]} 22... Qxe5 {[%clk 0:01:35.6]} 23. Qd3 {[%clk 0:01:44.3]}
23... Qxb2 {[%clk 0:01:19.3]} 24. Rb1 {[%clk 0:00:55.8]} 24... Qxa2 {[%clk
0:01:14.5]} 25. Nf4 {[%clk 0:00:51.1]} 25... Qc4 {[%clk 0:00:55.2]} 26. Qe3
{[%clk 0:00:48.2]} 26... Qe4 {[%clk 0:00:54.2]} 27. Qb3 {[%clk 0:00:44.1]} 27...
Be5 {[%clk 0:00:44]} 28. Nd3 {[%clk 0:00:41.7]} 28... Bd4 {[%clk 0:00:42]}
1/2-1/2

[Event "*** Titled Tuesday 3|2 Blitz"]
[Site "Chess.com"]
[Date "2016.05.03"]
[Round "5"]
[White "Boryboy"]
[Black "rhungaski"]
[Result "1-0"]
[WhiteElo "2513"]
[BlackElo "2462"]
[TimeControl "180+2"]
[EndTime "12:01:02 PDT"]
[Termination "Boryboy won by resignation"]

1. d4 {[%clk 0:03:01.9]} 1... d5 {[%clk 0:03:00.6]} 2. Nf3 {[%clk 0:02:51.3]}
2... Nf6 {[%clk 0:03:00.7]} 3. c4 {[%clk 0:02:49.7]} 3... dxc4 {[%clk
0:03:02.6]} 4. g3 {[%clk 0:02:48.9]} 4... b5 {[%clk 0:02:59.2]} 5. Bg2 {[%clk
0:02:48.9]} 5... Bb7 {[%clk 0:03:00.3]} 6. a4 {[%clk 0:02:49.3]} 6... a6 {[%clk
0:02:53.2]} 7. O-O {[%clk 0:02:48.6]} 7... Nbd7 {[%clk 0:02:51.1]} 8. b3 {[%clk
0:02:41.9]} 8... cxb3 {[%clk 0:02:45.8]} 9. Qxb3 {[%clk 0:02:43.8]} 9... Bd5
{[%clk 0:02:41.8]} 10. Qc2 {[%clk 0:02:38.5]} 10... b4 {[%clk 0:02:19.9]} 11.
Nbd2 {[%clk 0:02:25.6]} 11... e6 {[%clk 0:02:07.3]} 12. e4 {[%clk 0:02:26.3]}
12... Bb7 {[%clk 0:02:08.4]} 13. Bb2 {[%clk 0:02:21.4]} 13... Be7 {[%clk
0:01:59.1]} 14. Rfd1 {[%clk 0:02:21]} 14... O-O {[%clk 0:01:59.4]} 15. Rac1
{[%clk 0:02:14.8]} 15... c6 {[%clk 0:01:22.6]} 16. Nb3 {[%clk 0:02:10.2]} 16...
a5 {[%clk 0:01:20.7]} 17. Ne1 {[%clk 0:02:09.5]} 17... Qb6 {[%clk 0:01:17.2]}
18. Nd3 {[%clk 0:02:07.9]} 18... Rfd8 {[%clk 0:01:17]} 19. h3 {[%clk 0:01:50.5]}
19... Rac8 {[%clk 0:01:16.6]} 20. Rd2 {[%clk 0:01:36.3]} 20... h6 {[%clk
0:01:16.8]} 21. Rcd1 {[%clk 0:01:26.5]} 21... Qa7 {[%clk 0:01:10.9]} 22. Ne5
{[%clk 0:01:12.9]} 22... Qa8 {[%clk 0:00:21.3]} 23. Nc4 {[%clk 0:01:07.3]} 23...
c5 {[%clk 0:00:19.7]} 24. d5 {[%clk 0:01:03.2]} 24... exd5 {[%clk 0:00:21.6]}
25. exd5 {[%clk 0:01:04.3]} 25... Ba6 {[%clk 0:00:20.6]} 26. Nbxa5 {[%clk
0:01:05.1]} 26... Rb8 {[%clk 0:00:14.2]} 27. Nc6 {[%clk 0:01:05.7]} 27... b3
{[%clk 0:00:14.6]} 28. Nxe7+ {[%clk 0:01:01.5]} 28... Kf8 {[%clk 0:00:15.6]} 29.
Qc3 {[%clk 0:01:01.1]} 29... Kxe7 {[%clk 0:00:16.9]} 30. d6+ {[%clk 0:01:01.7]}
30... Kf8 {[%clk 0:00:18.1]} 31. Bxa8 {[%clk 0:01:03.4]} 31... Rxa8 {[%clk
0:00:19.1]} 32. Qxb3 {[%clk 0:01:01.9]} 32... Rab8 {[%clk 0:00:20]} 33. Qc2
{[%clk 0:01:02.9]} 33... Rb4 {[%clk 0:00:21.8]} 34. Ne5 {[%clk 0:01:03.3]} 34...
Nb6 {[%clk 0:00:22.5]} 35. Qxc5 {[%clk 0:01:03.5]} 1-0

[Event "*** Titled Tuesday 3|2 Blitz"]
[Site "Chess.com"]
[Date "2016.05.03"]
[Round "5"]
[White "Smirnov_Pavel"]
[Black "bugsbunny444"]
[Result "1-0"]
[WhiteElo "2490"]
[BlackElo "2374"]
[TimeControl "180+2"]
[EndTime "12:01:04 PDT"]
[Termination "Smirnov_Pavel won by resignation"]

1. d4 {[%clk 0:03:00.3]} 1... e6 {[%clk 0:03:00.6]} 2. c4 {[%clk 0:02:56.6]}
2... b6 {[%clk 0:03:01.8]} 3. e4 {[%clk 0:02:57]} 3... Bb7 {[%clk 0:03:03.1]} 4.
Bd3 {[%clk 0:02:57.9]} 4... Bb4+ {[%clk 0:03:04.3]} 5. Kf1 {[%clk 0:02:58.2]}
5... Be7 {[%clk 0:03:05.1]} 6. Nf3 {[%clk 0:02:58.3]} 6... d6 {[%clk 0:03:06.6]}
7. Nc3 {[%clk 0:02:59.3]} 7... Nd7 {[%clk 0:03:07.5]} 8. g3 {[%clk 0:03:00.4]}
8... Bf6 {[%clk 0:03:08.5]} 9. Kg2 {[%clk 0:03:00]} 9... Ne7 {[%clk 0:03:09.9]}
10. Re1 {[%clk 0:02:57.7]} 10... a6 {[%clk 0:03:05.8]} 11. Be3 {[%clk
0:02:56.1]} 11... O-O {[%clk 0:03:02.5]} 12. Kg1 {[%clk 0:02:52]} 12... c5
{[%clk 0:02:08.8]} 13. d5 {[%clk 0:02:49.2]} 13... Bxc3 {[%clk 0:02:01.3]} 14.
bxc3 {[%clk 0:02:49.4]} 14... e5 {[%clk 0:02:01.9]} 15. Nh4 {[%clk 0:02:46]}
15... Bc8 {[%clk 0:01:42.6]} 16. f4 {[%clk 0:02:44.4]} 16... exf4 {[%clk
0:01:22.7]} 17. gxf4 {[%clk 0:02:44.7]} 17... Nxd5 {[%clk 0:01:20.9]} 18. cxd5
{[%clk 0:02:34]} 18... Qxh4 {[%clk 0:01:21.3]} 19. Qf3 {[%clk 0:02:34.4]} 19...
Re8 {[%clk 0:01:05.5]} 20. Bf2 {[%clk 0:02:34.5]} 20... Qf6 {[%clk 0:00:54.7]}
21. Qg3 {[%clk 0:02:35.2]} 21... Qxc3 {[%clk 0:00:45.8]} 22. e5 {[%clk
0:02:35.6]} 22... Kf8 {[%clk 0:00:18.9]} 23. Rac1 {[%clk 0:02:30.5]} 23... Qa3
{[%clk 0:00:11.5]} 24. exd6 {[%clk 0:02:31.1]} 24... Nf6 {[%clk 0:00:10.3]} 25.
f5 {[%clk 0:02:21.5]} 25... Bd7 {[%clk 0:00:06.4]} 26. Rb1 {[%clk 0:02:16.5]}
26... Bb5 {[%clk 0:00:07.1]} 27. d7 {[%clk 0:02:13.6]} 27... Nxd7 {[%clk
0:00:04.8]} 28. Qd6+ {[%clk 0:02:10]} 28... Kg8 {[%clk 0:00:04.3]} 29. Bxb5
{[%clk 0:02:10.8]} 29... axb5 {[%clk 0:00:04.2]} 30. Rxe8+ {[%clk 0:02:01.8]}
30... Rxe8 {[%clk 0:00:05.1]} 31. Qxd7 {[%clk 0:02:03.1]} 31... Ra8 {[%clk
0:00:03.4]} 32. Re1 {[%clk 0:02:02.8]} 32... h6 {[%clk 0:00:02.9]} 33. Re8+
{[%clk 0:01:53.8]} 33... Kh7 {[%clk 0:00:02.5]} 34. Qxf7 {[%clk 0:01:46.6]}
34... Rxe8 {[%clk 0:00:03.4]} 35. Qg6+ {[%clk 0:01:47.8]} 35... Kg8 {[%clk
0:00:02.6]} 36. Qxe8+ {[%clk 0:01:48]} 36... Kh7 {[%clk 0:00:04.5]} 37. Qg6+
{[%clk 0:01:49]} 37... Kg8 {[%clk 0:00:05.5]} 38. f6 {[%clk 0:01:44.2]} 38...
Qc1+ {[%clk 0:00:05.5]} 39. Kg2 {[%clk 0:01:44.8]} 39... Qg5+ {[%clk 0:00:05.3]}
40. Qxg5 {[%clk 0:01:45.8]} 40... hxg5 {[%clk 0:00:07.2]} 41. d6 {[%clk
0:01:47.1]} 1-0

[Event "*** Titled Tuesday 3|2 Blitz"]
[Site "Chess.com"]
[Date "2016.05.03"]
[Round "5"]
[White "sorito"]
[Black "chorejason"]
[Result "1-0"]
[WhiteElo "2214"]
[BlackElo "2058"]
[TimeControl "180+2"]
[EndTime "12:01:11 PDT"]
[Termination "sorito won by checkmate"]

1. d4 {[%clk 0:03:01.9]} 1... Nf6 {[%clk 0:03:00.7]} 2. Nf3 {[%clk 0:03:02.5]}
2... g6 {[%clk 0:03:02.1]} 3. c4 {[%clk 0:03:03.2]} 3... Bg7 {[%clk 0:03:03.5]}
4. Nc3 {[%clk 0:03:03.2]} 4... O-O {[%clk 0:03:05.4]} 5. e4 {[%clk 0:03:03.9]}
5... d6 {[%clk 0:03:07.1]} 6. Be2 {[%clk 0:03:05.1]} 6... c5 {[%clk 0:03:08.4]}
7. d5 {[%clk 0:03:04]} 7... e6 {[%clk 0:03:09]} 8. O-O {[%clk 0:03:03.8]} 8...
exd5 {[%clk 0:03:10.3]} 9. cxd5 {[%clk 0:03:02.3]} 9... Re8 {[%clk 0:03:11.7]}
10. Nd2 {[%clk 0:03:02]} 10... Na6 {[%clk 0:03:03.5]} 11. Re1 {[%clk 0:03:00.4]}
11... Nc7 {[%clk 0:02:57.3]} 12. Qc2 {[%clk 0:02:56.4]} 12... a6 {[%clk
0:02:56.5]} 13. a4 {[%clk 0:02:57]} 13... Rb8 {[%clk 0:02:57.9]} 14. a5 {[%clk
0:02:49.3]} 14... b5 {[%clk 0:02:58.9]} 15. axb6 {[%clk 0:02:49.9]} 15... Rxb6
{[%clk 0:02:53.9]} 16. Nc4 {[%clk 0:02:50.9]} 16... Rb4 {[%clk 0:02:52.8]} 17.
Bf4 {[%clk 0:02:47.4]} 17... Nh5 {[%clk 0:02:32.2]} 18. Bxh5 {[%clk 0:02:43.3]}
18... Rxc4 {[%clk 0:02:30.1]} 19. Bf3 {[%clk 0:02:26]} 19... Nxd5 {[%clk
0:02:25.3]} 20. exd5 {[%clk 0:02:21.7]} 20... Rxf4 {[%clk 0:02:25.7]} 21. Qd2
{[%clk 0:01:43.3]} 21... Rd4 {[%clk 0:02:21.1]} 22. Rxe8+ {[%clk 0:01:40.3]}
22... Qxe8 {[%clk 0:02:22.2]} 23. Re1 {[%clk 0:01:42]} 23... Be5 {[%clk
0:02:00.2]} 24. Qe2 {[%clk 0:01:41.9]} 24... Qd8 {[%clk 0:01:55.8]} 25. g3
{[%clk 0:01:42.7]} 25... Qg5 {[%clk 0:01:46.8]} 26. Bg2 {[%clk 0:01:42.1]} 26...
Rd2 {[%clk 0:01:47.6]} 27. Qf1 {[%clk 0:01:26.8]} 27... Rxb2 {[%clk 0:00:55]}
28. Ne4 {[%clk 0:01:24.7]} 28... Qd8 {[%clk 0:00:46.1]} 29. f4 {[%clk
0:01:24.2]} 29... Bd4+ {[%clk 0:00:47.2]} 30. Kh1 {[%clk 0:01:25.4]} 30... Bf5
{[%clk 0:00:35.8]} 31. Qxa6 {[%clk 0:01:24.7]} 31... Bxe4 {[%clk 0:00:31.8]} 32.
Bxe4 {[%clk 0:01:24.9]} 32... Qd7 {[%clk 0:00:22.7]} 33. Bg2 {[%clk 0:01:21.3]}
33... Qg4 {[%clk 0:00:23.5]} 34. Qxd6 {[%clk 0:01:16.4]} 34... Bc3 {[%clk
0:00:19.4]} 35. Re8+ {[%clk 0:01:09.1]} 35... Kg7 {[%clk 0:00:20.8]} 36. Qf8+
{[%clk 0:01:10]} 36... Kf6 {[%clk 0:00:22.3]} 37. Qh8+ {[%clk 0:01:10.8]} 37...
Kf5 {[%clk 0:00:22.4]} 38. Re5+ {[%clk 0:01:08.7]} 38... Bxe5 {[%clk 0:00:17.5]}
39. Qxe5# {[%clk 0:01:10.6]} 1-0

[Event "*** Titled Tuesday 3|2 Blitz"]
[Site "Chess.com"]
[Date "2016.05.03"]
[Round "5"]
[White "KyronGriffith"]
[Black "spectralsoul"]
[Result "0-1"]
[WhiteElo "2314"]
[BlackElo "2542"]
[TimeControl "180+2"]
[EndTime "12:01:16 PDT"]
[Termination "spectralsoul won by checkmate"]

1. Nf3 {[%clk 0:03:01.9]} 1... Nf6 {[%clk 0:02:59.6]} 2. g3 {[%clk 0:02:58.6]}
2... b5 {[%clk 0:02:56.9]} 3. Bg2 {[%clk 0:02:54.4]} 3... Bb7 {[%clk 0:02:58]}
4. d4 {[%clk 0:02:54.9]} 4... e6 {[%clk 0:02:58.7]} 5. O-O {[%clk 0:02:55.5]}
5... c5 {[%clk 0:03:00.3]} 6. a4 {[%clk 0:02:50.8]} 6... b4 {[%clk 0:03:00.2]}
7. c3 {[%clk 0:02:50.4]} 7... a5 {[%clk 0:03:00.4]} 8. Nbd2 {[%clk 0:02:41.3]}
8... Be7 {[%clk 0:02:54.1]} 9. Re1 {[%clk 0:02:41.5]} 9... d5 {[%clk 0:02:45.4]}
10. dxc5 {[%clk 0:02:33.2]} 10... Bxc5 {[%clk 0:02:45.9]} 11. Nb3 {[%clk
0:02:33.8]} 11... Be7 {[%clk 0:02:41.2]} 12. Nfd4 {[%clk 0:02:27]} 12... O-O
{[%clk 0:02:32.4]} 13. c4 {[%clk 0:02:23.1]} 13... Qd7 {[%clk 0:01:54.5]} 14.
Nb5 {[%clk 0:01:56.4]} 14... Rc8 {[%clk 0:01:43.8]} 15. cxd5 {[%clk 0:01:29.2]}
15... Nxd5 {[%clk 0:01:45.2]} 16. Be3 {[%clk 0:01:14.3]} 16... Qe8 {[%clk
0:01:20.1]} 17. Bb6 {[%clk 0:00:59.2]} 17... Nd7 {[%clk 0:00:41.6]} 18. Bxa5
{[%clk 0:00:56.3]} 18... Bf6 {[%clk 0:00:32.3]} 19. Bxd5 {[%clk 0:00:49.5]}
19... Bxd5 {[%clk 0:00:32.7]} 20. Nc7 {[%clk 0:00:49.7]} 20... Rxc7 {[%clk
0:00:32.6]} 21. Bxc7 {[%clk 0:00:51.6]} 21... Bxb2 {[%clk 0:00:34.1]} 22. Rb1
{[%clk 0:00:21.4]} 22... Bc3 {[%clk 0:00:34.4]} 23. a5 {[%clk 0:00:22.5]} 23...
Bxe1 {[%clk 0:00:32.7]} 24. Qxe1 {[%clk 0:00:24.4]} 24... Qc8 {[%clk 0:00:30.5]}
25. Bf4 {[%clk 0:00:17.9]} 25... Qc2 {[%clk 0:00:21.9]} 26. Nd4 {[%clk
0:00:15.6]} 26... Qe4 {[%clk 0:00:17.8]} 27. Qxb4 {[%clk 0:00:15.8]} 27... Qh1#
{[%clk 0:00:16.6]} 0-1

[Event "*** Titled Tuesday 3|2 Blitz"]
[Site "Chess.com"]
[Date "2016.05.03"]
[Round "5"]
[White "platy3"]
[Black "iturrizaga"]
[Result "1-0"]
[WhiteElo "2651"]
[BlackElo "2553"]
[TimeControl "180+2"]
[EndTime "12:01:29 PDT"]
[Termination "platy3 won by resignation"]

1. e4 {[%clk 0:03:01.9]} 1... c5 {[%clk 0:03:01]} 2. Nf3 {[%clk 0:03:03.1]} 2...
g6 {[%clk 0:03:02.7]} 3. d4 {[%clk 0:02:58.8]} 3... cxd4 {[%clk 0:03:04.6]} 4.
Nxd4 {[%clk 0:03:00.7]} 4... Nc6 {[%clk 0:03:05.4]} 5. c4 {[%clk 0:03:01.3]}
5... Nf6 {[%clk 0:03:07.1]} 6. Nc3 {[%clk 0:03:02.2]} 6... d6 {[%clk 0:03:08.8]}
7. f3 {[%clk 0:03:02.5]} 7... Nxd4 {[%clk 0:03:04.6]} 8. Qxd4 {[%clk 0:03:03.1]}
8... Bg7 {[%clk 0:03:06.3]} 9. Be3 {[%clk 0:03:04.2]} 9... Be6 {[%clk
0:03:05.8]} 10. Qd2 {[%clk 0:02:54.3]} 10... Rc8 {[%clk 0:03:04.6]} 11. b3
{[%clk 0:02:55]} 11... b5 {[%clk 0:03:04.1]} 12. Bxa7 {[%clk 0:02:18.6]} 12...
Qa5 {[%clk 0:02:28.1]} 13. Nxb5 {[%clk 0:02:05.5]} 13... Qxd2+ {[%clk
0:02:25.4]} 14. Kxd2 {[%clk 0:02:07.4]} 14... Nxe4+ {[%clk 0:02:26.8]} 15. fxe4
{[%clk 0:02:09.2]} 15... Bxa1 {[%clk 0:02:28.1]} 16. Bd3 {[%clk 0:02:05.9]}
16... Be5 {[%clk 0:02:26.9]} 17. a4 {[%clk 0:02:07]} 17... Kd7 {[%clk
0:02:06.2]} 18. Bd4 {[%clk 0:02:02]} 18... Bxd4 {[%clk 0:01:53.5]} 19. Nxd4
{[%clk 0:02:03.9]} 19... Rb8 {[%clk 0:01:54.8]} 20. Kc3 {[%clk 0:02:03.5]} 20...
Rhc8 {[%clk 0:01:51]} 21. a5 {[%clk 0:01:59.1]} 21... d5 {[%clk 0:01:43.8]} 22.
exd5 {[%clk 0:01:59.5]} 22... Bxd5 {[%clk 0:01:44.6]} 23. Rg1 {[%clk 0:01:49.1]}
23... e5 {[%clk 0:01:42.6]} 24. Nc2 {[%clk 0:01:45.9]} 24... f5 {[%clk
0:01:29.4]} 25. g3 {[%clk 0:01:38.2]} 25... Rc7 {[%clk 0:01:19.1]} 26. b4 {[%clk
0:01:33.6]} 26... Be6 {[%clk 0:01:02.2]} 27. c5 {[%clk 0:01:31.8]} 27... Bd5
{[%clk 0:00:45.9]} 28. a6 {[%clk 0:01:29.9]} 28... Kc6 {[%clk 0:00:37.6]} 29.
Ra1 {[%clk 0:01:23.6]} 29... Ra7 {[%clk 0:00:36.6]} 30. Ra5 {[%clk 0:01:22.3]}
30... Bf3 {[%clk 0:00:34.6]} 31. Ne3 {[%clk 0:01:16.6]} 31... f4 {[%clk
0:00:34.4]} 32. gxf4 {[%clk 0:01:09.1]} 32... exf4 {[%clk 0:00:36.3]} 33. Nc4
{[%clk 0:01:10.8]} 33... Bd5 {[%clk 0:00:29.6]} 34. Ne5+ {[%clk 0:01:11.1]}
34... Kc7 {[%clk 0:00:30.8]} 35. b5 {[%clk 0:01:12.3]} 35... Raa8 {[%clk
0:00:25.2]} 36. b6+ {[%clk 0:01:11.3]} 36... Kd8 {[%clk 0:00:26.6]} 37. c6
{[%clk 0:01:06.9]} 37... Rxb6 {[%clk 0:00:27]} 38. Rxd5+ {[%clk 0:01:08]} 38...
Ke7 {[%clk 0:00:26.7]} 39. Kd4 {[%clk 0:01:01.8]} 39... Rb4+ {[%clk 0:00:25.1]}
40. Bc4 {[%clk 0:01:01.6]} 40... Rxa6 {[%clk 0:00:25.6]} 41. c7 {[%clk 0:00:59]}
41... Ra8 {[%clk 0:00:25.9]} 42. Nc6+ {[%clk 0:01:00]} 1-0

[Event "*** Titled Tuesday 3|2 Blitz"]
[Site "Chess.com"]
[Date "2016.05.03"]
[Round "5"]
[White "GMG"]
[Black "Fh2411"]
[Result "0-1"]
[WhiteElo "2426"]
[BlackElo "2280"]
[TimeControl "180+2"]
[EndTime "12:01:56 PDT"]
[Termination "Fh2411 won by resignation"]

1. d4 {[%clk 0:03:01.9]} 1... Nf6 {[%clk 0:02:59.8]} 2. Bg5 {[%clk 0:03:02.5]}
2... Ne4 {[%clk 0:03:00]} 3. Bf4 {[%clk 0:03:03.3]} 3... d5 {[%clk 0:03:01.5]}
4. e3 {[%clk 0:03:02.8]} 4... c6 {[%clk 0:03:02.1]} 5. Nd2 {[%clk 0:02:58.7]}
5... Bf5 {[%clk 0:03:00]} 6. f3 {[%clk 0:02:57.9]} 6... Nxd2 {[%clk 0:02:54.9]}
7. Qxd2 {[%clk 0:02:59.8]} 7... e6 {[%clk 0:02:49.5]} 8. g4 {[%clk 0:02:56.2]}
8... Bg6 {[%clk 0:02:50.3]} 9. h4 {[%clk 0:02:57.6]} 9... h5 {[%clk 0:02:50.5]}
10. g5 {[%clk 0:02:58.7]} 10... Nd7 {[%clk 0:02:47.9]} 11. Nh3 {[%clk
0:02:50.6]} 11... a5 {[%clk 0:02:29.8]} 12. a4 {[%clk 0:02:48.3]} 12... Qb6
{[%clk 0:02:24.8]} 13. c3 {[%clk 0:02:43.9]} 13... Qb3 {[%clk 0:02:24.1]} 14.
Be2 {[%clk 0:02:41.6]} 14... Qc2 {[%clk 0:02:22.1]} 15. Qxc2 {[%clk 0:02:40.6]}
15... Bxc2 {[%clk 0:02:24]} 16. Kd2 {[%clk 0:02:41]} 16... Bf5 {[%clk
0:02:24.1]} 17. Nf2 {[%clk 0:02:40.6]} 17... Be7 {[%clk 0:02:22.2]} 18. e4
{[%clk 0:02:27.4]} 18... Bg6 {[%clk 0:02:22.5]} 19. Bd3 {[%clk 0:02:26.5]} 19...
Nb6 {[%clk 0:02:13.3]} 20. Bc7 {[%clk 0:02:21.3]} 20... Nc8 {[%clk 0:02:12.7]}
21. Rae1 {[%clk 0:02:10.9]} 21... Kd7 {[%clk 0:02:13]} 22. Bg3 {[%clk
0:02:12.1]} 22... Nd6 {[%clk 0:02:04.2]} 23. Nh3 {[%clk 0:02:13.1]} 23... b5
{[%clk 0:01:55.1]} 24. Nf4 {[%clk 0:01:59.5]} 24... Nc4+ {[%clk 0:01:47]} 25.
Kc2 {[%clk 0:01:51.7]} 25... bxa4 {[%clk 0:01:41.8]} 26. Bxc4 {[%clk 0:01:50.1]}
26... dxc4 {[%clk 0:01:41.8]} 27. Ra1 {[%clk 0:01:50.8]} 27... a3 {[%clk
0:01:41.7]} 28. bxa3 {[%clk 0:01:50.8]} 28... a4 {[%clk 0:01:32.6]} 29. Nxg6
{[%clk 0:01:47.3]} 29... fxg6 {[%clk 0:01:31.2]} 30. Rhb1 {[%clk 0:01:00.4]}
30... Ra7 {[%clk 0:01:31.2]} 31. Be5 {[%clk 0:00:58.4]} 31... Rf8 {[%clk
0:01:30.2]} 32. Rf1 {[%clk 0:00:50.1]} 32... Rb7 {[%clk 0:01:28.7]} 33. Rab1
{[%clk 0:00:45.9]} 33... Rb3 {[%clk 0:01:28.9]} 34. Rxb3 {[%clk 0:00:40.7]}
34... axb3+ {[%clk 0:01:29]} 35. Kb2 {[%clk 0:00:41.8]} 35... Ra8 {[%clk
0:01:24.7]} 36. Ra1 {[%clk 0:00:30.9]} 36... Rf8 {[%clk 0:01:21.5]} 37. Rf1
{[%clk 0:00:17.3]} 37... Rf7 {[%clk 0:00:56.1]} 38. f4 {[%clk 0:00:16.5]} 38...
Kc8 {[%clk 0:00:55.5]} 39. a4 {[%clk 0:00:16.7]} 39... Kb7 {[%clk 0:00:56.4]}
40. Rf2 {[%clk 0:00:17]} 40... Ka6 {[%clk 0:00:57.4]} 41. Rf1 {[%clk 0:00:17.9]}
41... Bf8 {[%clk 0:00:48]} 42. Bc7 {[%clk 0:00:13.5]} 0-1